[Event "Titled Tuesday Blitz April 18 Early 2023"]
[White "Steenbekkers, Franck"]
[Black "Fernandez Siles, Luis"]
[WhiteFideId "1004220"]
[BlackFideId "2209420"]
[WhiteElo "2095"]
[BlackElo "2195"]
[Result "0-1"]
[Round "02"]
[TimeControl "180+2"]
[Date "2023.04.18"]
[WhiteClock "0:00:52"]
[BlackClock "0:00:47"]

1. e4 {[%clk 0:02:55]}  c5 {[%clk 0:02:59]} 2. Nf3 {[%clk 0:02:55]}  Nc6 {[%clk 0:02:59]} 3. Bb5 {[%clk 0:02:54]}  g6 {[%clk 0:03:00]} 4. O-O {[%clk 0:02:53]}  Bg7 {[%clk 0:03:00]} 5. Re1 {[%clk 0:02:53]}  Nf6 {[%clk 0:03:00]} 6. c3 {[%clk 0:02:52]}  O-O {[%clk 0:02:59]} 7. d4 {[%clk 0:02:51]}  d5 {[%clk 0:03:00]} 8. e5 {[%clk 0:02:50]}  Ne4 {[%clk 0:03:00]} 9. Bxc6 {[%clk 0:02:50]}  bxc6 {[%clk 0:02:59]} 10. Be3 {[%clk 0:02:49]}  Qb6 {[%clk 0:02:56]} 11. b3 {[%clk 0:02:47]}  cxd4 {[%clk 0:02:51]} 12. cxd4 {[%clk 0:02:47]}  f6 {[%clk 0:02:41]} 13. Nbd2 {[%clk 0:02:43]}  Nxd2 {[%clk 0:02:25]} 14. Qxd2 {[%clk 0:02:41]}  Bf5 {[%clk 0:02:17]} 15. Rad1 {[%clk 0:02:40]}  Be4 {[%clk 0:02:12]} 16. Qe2 {[%clk 0:02:21]}  Bxf3 {[%clk 0:02:11]} 17. gxf3 {[%clk 0:02:18]}  fxe5 {[%clk 0:01:54]} 18. dxe5 {[%clk 0:02:16]}  Qc7 {[%clk 0:01:52]} 19. Bc5 {[%clk 0:02:15]}  Rf4 {[%clk 0:01:45]} 20. Rd3 {[%clk 0:02:11]}  Raf8 {[%clk 0:01:44]} 21. Kg2 {[%clk 0:02:09]}  R8f5 {[%clk 0:01:42]} 22. Bd4 {[%clk 0:01:55]}  e6 {[%clk 0:01:31]} 23. Rc1 {[%clk 0:01:32]}  h6 {[%clk 0:01:26]} 24. Rc5 {[%clk 0:01:23]}  Kh7 {[%clk 0:01:15]} 25. Qc2 {[%clk 0:01:17]}  Qe7 {[%clk 0:01:14]} 26. Rxc6 {[%clk 0:01:13]}  Qg5+ {[%clk 0:01:07]} 27. Kf1 {[%clk 0:01:12]}  Qh4 {[%clk 0:00:58]} 28. Rc7 {[%clk 0:01:05]}  Rxd4 {[%clk 0:00:53]} 29. Rxd4 {[%clk 0:00:56]}  Qxd4 {[%clk 0:00:51]} 30. Qc6 {[%clk 0:00:57]}  Qd1+ {[%clk 0:00:48]} 31. Kg2 {[%clk 0:00:54]}  Qxf3+ {[%clk 0:00:47]} 32. Kg1 {[%clk 0:00:52]}  Qxf2+ {[%clk 0:00:47]} 33. Kh1 {[%clk 0:00:52]}  Qf1# {[%clk 0:00:47]} 0-1


[Site "https://www.chess.com"]

[Event "Titled Tuesday Blitz April 18 Early 2023"]
[White "Torres Dominguez, David"]
[Black "Zacurdajev, Dmitry"]
[WhiteFideId "2220857"]
[BlackFideId "4196309"]
[WhiteElo "1999"]
[BlackElo "2189"]
[Result "0-1"]
[Round "02"]
[TimeControl "180+2"]
[Date "2023.04.18"]
[WhiteClock "0:00:01"]
[BlackClock "0:00:05"]

1. e4 {[%clk 0:03:00]}  c6 {[%clk 0:03:00]} 2. Nf3 {[%clk 0:03:00]}  d5 {[%clk 0:03:00]} 3. d3 {[%clk 0:03:00]}  e6 {[%clk 0:03:00]} 4. Be2 {[%clk 0:03:00]}  Nf6 {[%clk 0:03:01]} 5. Nbd2 {[%clk 0:02:59]}  Be7 {[%clk 0:03:01]} 6. O-O {[%clk 0:02:59]}  O-O {[%clk 0:03:01]} 7. Re1 {[%clk 0:02:59]}  c5 {[%clk 0:03:02]} 8. e5 {[%clk 0:02:59]}  Nfd7 {[%clk 0:03:02]} 9. Nf1 {[%clk 0:02:56]}  Nc6 {[%clk 0:03:02]} 10. Bf4 {[%clk 0:02:55]}  b5 {[%clk 0:03:03]} 11. d4 {[%clk 0:02:50]}  Rb8 {[%clk 0:02:56]} 12. Bd3 {[%clk 0:02:38]}  cxd4 {[%clk 0:02:38]} 13. a3 {[%clk 0:02:37]}  b4 {[%clk 0:02:30]} 14. Ng3 {[%clk 0:02:30]}  bxa3 {[%clk 0:02:28]} 15. bxa3 {[%clk 0:02:30]}  Nc5 {[%clk 0:02:28]} 16. Bf1 {[%clk 0:02:19]}  Qb6 {[%clk 0:02:02]} 17. Nh5 {[%clk 0:02:18]}  Ne4 {[%clk 0:01:56]} 18. Bd3 {[%clk 0:01:48]}  Bb7 {[%clk 0:01:12]} 19. Qc1 {[%clk 0:01:44]}  Rfc8 {[%clk 0:00:57]} 20. Bh6 {[%clk 0:01:31]}  g6 {[%clk 0:00:54]} 21. Nf6+ {[%clk 0:01:29]}  Nxf6 {[%clk 0:00:39]} 22. exf6 {[%clk 0:01:28]}  Bxf6 {[%clk 0:00:40]} 23. Qf4 {[%clk 0:01:20]}  Bh8 {[%clk 0:00:22]} 24. Ng5 {[%clk 0:01:10]}  Qc7 {[%clk 0:00:20]} 25. Qh4 {[%clk 0:01:10]}  Ne5 {[%clk 0:00:15]} 26. Bf1 {[%clk 0:00:42]}  Bf6 {[%clk 0:00:14]} 27. f4 {[%clk 0:00:39]}  Nc4 {[%clk 0:00:11]} 28. Qh3 {[%clk 0:00:27]}  Ne3 {[%clk 0:00:11]} 29. Bd3 {[%clk 0:00:24]}  Nf5 {[%clk 0:00:11]} 30. Rac1 {[%clk 0:00:20]}  Qxf4 {[%clk 0:00:06]} 31. Nxf7 {[%clk 0:00:09]}  Qh4 {[%clk 0:00:06]} 32. Qxh4 {[%clk 0:00:09]}  Bxh4 {[%clk 0:00:04]} 33. Ng5 {[%clk 0:00:08]}  Bxe1 {[%clk 0:00:04]} 34. Rxe1 {[%clk 0:00:07]}  Re8 {[%clk 0:00:04]} 35. Nxe6 {[%clk 0:00:05]}  Bc8 {[%clk 0:00:04]} 36. Bxf5 {[%clk 0:00:04]}  gxf5 {[%clk 0:00:04]} 37. Bf4 {[%clk 0:00:02]}  Rxe6 {[%clk 0:00:04]} 38. Rxe6 {[%clk 0:00:01]}  Bxe6 {[%clk 0:00:05]} 0-1


[Site "https://www.chess.com"]

[Event "Titled Tuesday Blitz April 18 Early 2023"]
[White "AKINSEYE, Akinleye"]
[Black "Lach, Aleksandra"]
[WhiteFideId "8504458"]
[BlackFideId "1134299"]
[WhiteElo "1906"]
[BlackElo "2111"]
[Result "0-1"]
[Round "02"]
[TimeControl "180+2"]
[Date "2023.04.18"]
[WhiteClock "0:00:01"]
[BlackClock "0:00:06"]

1. e4 {[%clk 0:03:00]}  c5 {[%clk 0:02:58]} 2. d4 {[%clk 0:02:59]}  cxd4 {[%clk 0:02:53]} 3. c3 {[%clk 0:03:00]}  dxc3 {[%clk 0:02:49]} 4. Nxc3 {[%clk 0:03:01]}  Nc6 {[%clk 0:02:48]} 5. Nf3 {[%clk 0:03:02]}  a6 {[%clk 0:02:46]} 6. Bc4 {[%clk 0:03:03]}  e6 {[%clk 0:02:46]} 7. O-O {[%clk 0:03:01]}  d6 {[%clk 0:02:41]} 8. Qe2 {[%clk 0:03:01]}  Nf6 {[%clk 0:02:34]} 9. Rd1 {[%clk 0:03:00]}  Qc7 {[%clk 0:02:34]} 10. Bg5 {[%clk 0:02:57]}  Be7 {[%clk 0:02:24]} 11. Rac1 {[%clk 0:02:56]}  O-O {[%clk 0:01:55]} 12. Bb3 {[%clk 0:02:53]}  Qb8 {[%clk 0:01:52]} 13. Bf4 {[%clk 0:02:51]}  e5 {[%clk 0:01:46]} 14. Be3 {[%clk 0:02:50]}  Be6 {[%clk 0:01:45]} 15. Bb6 {[%clk 0:02:24]}  Bxb3 {[%clk 0:01:28]} 16. axb3 {[%clk 0:02:25]}  Bd8 {[%clk 0:01:26]} 17. Na4 {[%clk 0:02:23]}  Bc7 {[%clk 0:01:17]} 18. Nd2 {[%clk 0:02:06]}  Bxb6 {[%clk 0:01:13]} 19. Nxb6 {[%clk 0:02:01]}  Nd4 {[%clk 0:01:13]} 20. Qe3 {[%clk 0:01:54]}  Ra7 {[%clk 0:01:12]} 21. Nbc4 {[%clk 0:01:51]}  b5 {[%clk 0:01:09]} 22. Na3 {[%clk 0:01:48]}  Rc7 {[%clk 0:01:08]} 23. Nf3 {[%clk 0:01:38]}  Nxf3+ {[%clk 0:01:02]} 24. Qxf3 {[%clk 0:01:36]}  Rfc8 {[%clk 0:01:02]} 25. Rxc7 {[%clk 0:01:24]}  Qxc7 {[%clk 0:01:03]} 26. Qe3 {[%clk 0:01:19]}  h6 {[%clk 0:01:02]} 27. f3 {[%clk 0:01:17]}  Qc6 {[%clk 0:00:51]} 28. h3 {[%clk 0:01:16]}  a5 {[%clk 0:00:37]} 29. Qd3 {[%clk 0:01:14]}  Qc5+ {[%clk 0:00:37]} 30. Kh2 {[%clk 0:01:13]}  Qf2 {[%clk 0:00:34]} 31. Nxb5 {[%clk 0:01:00]}  Rc2 {[%clk 0:00:29]} 32. Rg1 {[%clk 0:00:52]}  Rd2 {[%clk 0:00:29]} 33. Qc3 {[%clk 0:00:48]}  g6 {[%clk 0:00:21]} 34. Na3 {[%clk 0:00:28]}  Nh5 {[%clk 0:00:17]} 35. Nc4 {[%clk 0:00:17]}  Rc2 {[%clk 0:00:17]} 36. Qd3 {[%clk 0:00:16]}  Qg3+ {[%clk 0:00:07]} 37. Kh1 {[%clk 0:00:15]}  Rf2 {[%clk 0:00:07]} 38. Qxd6 {[%clk 0:00:15]}  Nf4 {[%clk 0:00:08]} 39. Nxe5 {[%clk 0:00:11]}  Rxg2 {[%clk 0:00:05]} 40. Qd8+ {[%clk 0:00:09]}  Kg7 {[%clk 0:00:06]} 41. Qf6+ {[%clk 0:00:01]}  Kxf6 {[%clk 0:00:06]} 42. Ng4+ {[%clk 0:00:01]}  Kg7 {[%clk 0:00:06]} 0-1


[Site "https://www.chess.com"]

[Event "Titled Tuesday Blitz April 18 Early 2023"]
[White "Perez Cruz, Adianet"]
[Black "Yanayt, Eugene"]
[WhiteFideId "3510115"]
[BlackFideId "2020165"]
[WhiteElo "1975"]
[BlackElo "2083"]
[Result "1/2-1/2"]
[Round "02"]
[TimeControl "180+2"]
[Date "2023.04.18"]
[WhiteClock "0:00:24"]
[BlackClock "0:00:13"]

1. Nf3 {[%clk 0:03:00]}  Nf6 {[%clk 0:02:59]} 2. d4 {[%clk 0:03:00]}  g6 {[%clk 0:02:59]} 3. b3 {[%clk 0:02:59]}  Bg7 {[%clk 0:02:59]} 4. Bb2 {[%clk 0:03:00]}  O-O {[%clk 0:02:59]} 5. e3 {[%clk 0:03:00]}  c5 {[%clk 0:02:59]} 6. Nbd2 {[%clk 0:03:01]}  d6 {[%clk 0:03:00]} 7. Be2 {[%clk 0:03:01]}  Nc6 {[%clk 0:03:00]} 8. O-O {[%clk 0:03:01]}  Qc7 {[%clk 0:02:58]} 9. h3 {[%clk 0:03:01]}  e5 {[%clk 0:02:59]} 10. c4 {[%clk 0:02:59]}  cxd4 {[%clk 0:02:55]} 11. exd4 {[%clk 0:02:59]}  h6 {[%clk 0:02:54]} 12. d5 {[%clk 0:02:59]}  Ne7 {[%clk 0:02:53]} 13. Bd3 {[%clk 0:02:57]}  Nd7 {[%clk 0:02:47]} 14. Re1 {[%clk 0:02:54]}  f5 {[%clk 0:02:47]} 15. Bc2 {[%clk 0:02:51]}  Nf6 {[%clk 0:02:44]} 16. Nf1 {[%clk 0:02:43]}  f4 {[%clk 0:02:34]} 17. Qb1 {[%clk 0:02:23]}  Nf5 {[%clk 0:02:28]} 18. N1d2 {[%clk 0:02:14]}  Qf7 {[%clk 0:02:20]} 19. Ne4 {[%clk 0:02:14]}  Nxe4 {[%clk 0:02:19]} 20. Bxe4 {[%clk 0:02:15]}  g5 {[%clk 0:02:19]} 21. Nh2 {[%clk 0:02:14]}  h5 {[%clk 0:02:18]} 22. f3 {[%clk 0:02:13]}  Qf6 {[%clk 0:02:09]} 23. Qd3 {[%clk 0:01:49]}  Rf7 {[%clk 0:02:05]} 24. Rad1 {[%clk 0:01:48]}  Bf8 {[%clk 0:02:05]} 25. b4 {[%clk 0:01:26]}  b6 {[%clk 0:02:03]} 26. a4 {[%clk 0:01:26]}  a5 {[%clk 0:02:02]} 27. c5 {[%clk 0:01:19]}  axb4 {[%clk 0:02:01]} 28. cxb6 {[%clk 0:01:15]}  Rxa4 {[%clk 0:01:57]} 29. Qb5 {[%clk 0:01:15]}  Bd7 {[%clk 0:01:55]} 30. Qc4 {[%clk 0:01:10]}  Rg7 {[%clk 0:01:51]} 31. Ra1 {[%clk 0:01:08]}  Rxa1 {[%clk 0:01:47]} 32. Rxa1 {[%clk 0:01:09]}  Ne3 {[%clk 0:01:47]} 33. Qe2 {[%clk 0:00:53]}  Bc8 {[%clk 0:01:20]} 34. Ra7 {[%clk 0:00:46]}  Bb7 {[%clk 0:01:18]} 35. Bc1 {[%clk 0:00:41]}  g4 {[%clk 0:00:35]} 36. hxg4 {[%clk 0:00:39]}  hxg4 {[%clk 0:00:35]} 37. Bxe3 {[%clk 0:00:40]}  fxe3 {[%clk 0:00:32]} 38. Qxe3 {[%clk 0:00:32]}  g3 {[%clk 0:00:30]} 39. Ng4 {[%clk 0:00:32]}  Qh4 {[%clk 0:00:30]} 40. Kf1 {[%clk 0:00:31]}  Rf7 {[%clk 0:00:26]} 41. Ke2 {[%clk 0:00:27]}  Qh1 {[%clk 0:00:25]} 42. Qg5+ {[%clk 0:00:24]}  Rg7 {[%clk 0:00:22]} 43. Qh6 {[%clk 0:00:19]}  Qxg2+ {[%clk 0:00:18]} 44. Kd3 {[%clk 0:00:19]}  Qf1+ {[%clk 0:00:16]} 45. Kc2 {[%clk 0:00:17]}  Qe2+ {[%clk 0:00:15]} 46. Kb3 {[%clk 0:00:17]}  Rxg4 {[%clk 0:00:10]} 47. fxg4 {[%clk 0:00:17]}  Qe3+ {[%clk 0:00:09]} 48. Qxe3 {[%clk 0:00:16]}  g2 {[%clk 0:00:07]} 49. Qd3 {[%clk 0:00:17]}  g1=Q {[%clk 0:00:07]} 50. Kc4 {[%clk 0:00:15]}  Qxb6 {[%clk 0:00:07]} 51. Rxb7 {[%clk 0:00:14]}  Qxb7 {[%clk 0:00:07]} 52. Bg6 {[%clk 0:00:14]}  Qc7+ {[%clk 0:00:07]} 53. Kb3 {[%clk 0:00:15]}  Qc5 {[%clk 0:00:07]} 54. Qc4 {[%clk 0:00:15]}  Qe3+ {[%clk 0:00:07]} 55. Kxb4 {[%clk 0:00:16]}  Qf4 {[%clk 0:00:07]} 56. Qxf4 {[%clk 0:00:16]}  exf4 {[%clk 0:00:07]} 57. Kc3 {[%clk 0:00:17]}  Kg7 {[%clk 0:00:08]} 58. Bd3 {[%clk 0:00:17]}  Kf6 {[%clk 0:00:08]} 59. Kd2 {[%clk 0:00:18]}  Ke5 {[%clk 0:00:09]} 60. Ke2 {[%clk 0:00:19]}  Kxd5 {[%clk 0:00:09]} 61. Kf3 {[%clk 0:00:20]}  Ke5 {[%clk 0:00:10]} 62. Be4 {[%clk 0:00:20]}  d5 {[%clk 0:00:11]} 63. Bxd5 {[%clk 0:00:21]}  Kxd5 {[%clk 0:00:09]} 64. Kxf4 {[%clk 0:00:22]}  Ke6 {[%clk 0:00:10]} 65. g5 {[%clk 0:00:22]}  Kf7 {[%clk 0:00:10]} 66. Kg4 {[%clk 0:00:23]}  Kg6 {[%clk 0:00:11]} 67. Kh4 {[%clk 0:00:23]}  Be7 {[%clk 0:00:12]} 68. Kg3 {[%clk 0:00:24]}  Bxg5 {[%clk 0:00:13]} 1/2-1/2


[Site "https://www.chess.com"]

[Event "Titled Tuesday Blitz April 18 Early 2023"]
[White "Sanchez, Robert"]
[Black "Mrudul Dehankar"]
[WhiteFideId "2034360"]
[BlackFideId "25096990"]
[WhiteElo "1959"]
[BlackElo "2139"]
[Result "0-1"]
[Round "02"]
[TimeControl "180+2"]
[Date "2023.04.18"]
[WhiteClock "0:01:12"]
[BlackClock "0:00:01"]

1. e4 {[%clk 0:03:00]}  c6 {[%clk 0:02:57]} 2. d4 {[%clk 0:02:48]}  d5 {[%clk 0:02:57]} 3. exd5 {[%clk 0:02:49]}  cxd5 {[%clk 0:02:57]} 4. Bd3 {[%clk 0:02:50]}  Nc6 {[%clk 0:02:55]} 5. c3 {[%clk 0:02:50]}  Nf6 {[%clk 0:02:55]} 6. h3 {[%clk 0:02:49]}  g6 {[%clk 0:02:55]} 7. Nf3 {[%clk 0:02:49]}  Bg7 {[%clk 0:02:53]} 8. O-O {[%clk 0:02:50]}  O-O {[%clk 0:02:52]} 9. Re1 {[%clk 0:02:50]}  Bf5 {[%clk 0:02:48]} 10. Bxf5 {[%clk 0:02:50]}  gxf5 {[%clk 0:02:48]} 11. Na3 {[%clk 0:02:50]}  e6 {[%clk 0:02:48]} 12. Bg5 {[%clk 0:02:50]}  Qc7 {[%clk 0:02:40]} 13. Qc1 {[%clk 0:02:50]}  Ne4 {[%clk 0:02:24]} 14. Bf4 {[%clk 0:02:48]}  Qe7 {[%clk 0:02:23]} 15. Nc2 {[%clk 0:02:38]}  Rac8 {[%clk 0:02:20]} 16. Nd2 {[%clk 0:02:35]}  Kh8 {[%clk 0:01:40]} 17. f3 {[%clk 0:02:35]}  Nf6 {[%clk 0:01:25]} 18. Nb3 {[%clk 0:02:36]}  Nh5 {[%clk 0:01:23]} 19. Bd2 {[%clk 0:02:30]}  Rg8 {[%clk 0:01:23]} 20. Kh1 {[%clk 0:02:29]}  Qf6 {[%clk 0:01:06]} 21. Nc5 {[%clk 0:02:21]}  b6 {[%clk 0:00:42]} 22. Nd3 {[%clk 0:02:20]}  Qg6 {[%clk 0:00:39]} 23. Rg1 {[%clk 0:02:06]}  Bf6 {[%clk 0:00:38]} 24. Be1 {[%clk 0:01:55]}  Bg5 {[%clk 0:00:28]} 25. Qd1 {[%clk 0:01:54]}  Qf6 {[%clk 0:00:26]} 26. Qe2 {[%clk 0:01:53]}  Bh4 {[%clk 0:00:18]} 27. g4 {[%clk 0:01:53]}  Bxe1 {[%clk 0:00:11]} 28. Raxe1 {[%clk 0:01:46]}  Qh4 {[%clk 0:00:11]} 29. Qg2 {[%clk 0:01:44]}  Nf6 {[%clk 0:00:08]} 30. Ne5 {[%clk 0:01:36]}  Nxe5 {[%clk 0:00:05]} 31. dxe5 {[%clk 0:01:36]}  Nd7 {[%clk 0:00:05]} 32. Nd4 {[%clk 0:01:21]}  Rg7 {[%clk 0:00:03]} 33. Nb5 {[%clk 0:01:21]}  Rcg8 {[%clk 0:00:03]} 34. Nd6 {[%clk 0:01:19]}  Qe7 {[%clk 0:00:02]} 35. Qh2 {[%clk 0:01:12]}  Rg5 {[%clk 0:00:01]} 0-1


[Site "https://www.chess.com"]

[Event "Titled Tuesday Blitz April 18 Early 2023"]
[White "Nakamura, Hikaru"]
[Black "Mammadov, Zaur"]
[WhiteFideId "2016192"]
[BlackFideId "13401033"]
[WhiteElo "2885"]
[BlackElo "2441"]
[Result "1-0"]
[Round "03"]
[TimeControl "180+2"]
[Date "2023.04.18"]
[WhiteClock "0:00:17"]
[BlackClock "0:00:14"]

1. Nf3 {[%clk 0:03:00]}  d5 {[%clk 0:02:59]} 2. e3 {[%clk 0:02:55]}  Nf6 {[%clk 0:02:57]} 3. c4 {[%clk 0:02:54]}  dxc4 {[%clk 0:02:56]} 4. Bxc4 {[%clk 0:02:53]}  e6 {[%clk 0:02:56]} 5. b3 {[%clk 0:02:51]}  c5 {[%clk 0:02:56]} 6. Bb2 {[%clk 0:02:51]}  Nc6 {[%clk 0:02:57]} 7. O-O {[%clk 0:02:51]}  Be7 {[%clk 0:02:57]} 8. d4 {[%clk 0:02:51]}  cxd4 {[%clk 0:02:58]} 9. Nxd4 {[%clk 0:02:52]}  Nxd4 {[%clk 0:02:58]} 10. Bxd4 {[%clk 0:02:52]}  O-O {[%clk 0:02:58]} 11. Be2 {[%clk 0:02:51]}  Bd7 {[%clk 0:02:49]} 12. Bf3 {[%clk 0:02:51]}  Bc6 {[%clk 0:02:50]} 13. Bxc6 {[%clk 0:02:51]}  bxc6 {[%clk 0:02:51]} 14. Qc2 {[%clk 0:02:40]}  c5 {[%clk 0:02:44]} 15. Bb2 {[%clk 0:02:38]}  Nd5 {[%clk 0:02:39]} 16. Rd1 {[%clk 0:02:32]}  Bf6 {[%clk 0:02:28]} 17. Na3 {[%clk 0:02:26]}  Bxb2 {[%clk 0:02:25]} 18. Qxb2 {[%clk 0:02:27]}  Qg5 {[%clk 0:02:23]} 19. Nc4 {[%clk 0:02:25]}  Rfd8 {[%clk 0:02:23]} 20. Rac1 {[%clk 0:02:16]}  h5 {[%clk 0:02:23]} 21. Nd2 {[%clk 0:02:07]}  Nb4 {[%clk 0:02:17]} 22. Nf3 {[%clk 0:02:06]}  Qf5 {[%clk 0:02:12]} 23. Qe2 {[%clk 0:02:01]}  Nd3 {[%clk 0:02:03]} 24. Rc2 {[%clk 0:01:39]}  Ne5 {[%clk 0:01:58]} 25. Rdc1 {[%clk 0:01:33]}  Nxf3+ {[%clk 0:01:51]} 26. Qxf3 {[%clk 0:01:25]}  Qxf3 {[%clk 0:01:40]} 27. gxf3 {[%clk 0:01:26]}  a5 {[%clk 0:01:40]} 28. Rxc5 {[%clk 0:01:26]}  g6 {[%clk 0:01:41]} 29. a4 {[%clk 0:01:10]}  Rd3 {[%clk 0:01:34]} 30. Rb5 {[%clk 0:01:10]}  Rad8 {[%clk 0:01:26]} 31. Rc7 {[%clk 0:01:08]}  R8d5 {[%clk 0:01:23]} 32. Rxd5 {[%clk 0:01:04]}  Rxd5 {[%clk 0:01:21]} 33. Rb7 {[%clk 0:01:00]}  Rd1+ {[%clk 0:01:19]} 34. Kg2 {[%clk 0:01:00]}  Rb1 {[%clk 0:01:20]} 35. f4 {[%clk 0:00:59]}  Kg7 {[%clk 0:01:20]} 36. Rb5 {[%clk 0:00:50]}  Kf6 {[%clk 0:01:20]} 37. e4 {[%clk 0:00:49]}  Rb2 {[%clk 0:01:15]} 38. h4 {[%clk 0:00:48]}  Rb1 {[%clk 0:01:13]} 39. Kf3 {[%clk 0:00:49]}  Rb2 {[%clk 0:01:13]} 40. Ke3 {[%clk 0:00:49]}  Ke7 {[%clk 0:01:10]} 41. f3 {[%clk 0:00:48]}  Rh2 {[%clk 0:01:03]} 42. Rxa5 {[%clk 0:00:48]}  Rxh4 {[%clk 0:01:04]} 43. Ra7+ {[%clk 0:00:48]}  Kf6 {[%clk 0:01:04]} 44. Kd4 {[%clk 0:00:22]}  Rh3 {[%clk 0:00:57]} 45. b4 {[%clk 0:00:18]}  Rxf3 {[%clk 0:00:56]} 46. a5 {[%clk 0:00:17]}  h4 {[%clk 0:00:50]} 47. Rc7 {[%clk 0:00:17]}  Rb3 {[%clk 0:00:46]} 48. Kc4 {[%clk 0:00:17]}  Rb1 {[%clk 0:00:29]} 49. e5+ {[%clk 0:00:17]}  Kg7 {[%clk 0:00:25]} 50. Kb5 {[%clk 0:00:17]}  h3 {[%clk 0:00:24]} 51. Rc2 {[%clk 0:00:17]}  g5 {[%clk 0:00:23]} 52. fxg5 {[%clk 0:00:17]}  Kg6 {[%clk 0:00:23]} 53. Rh2 {[%clk 0:00:17]}  Rb3 {[%clk 0:00:22]} 54. Ka4 {[%clk 0:00:17]}  Rb1 {[%clk 0:00:15]} 55. Rxh3 {[%clk 0:00:17]}  Kxg5 {[%clk 0:00:15]} 56. a6 {[%clk 0:00:18]}  Ra1+ {[%clk 0:00:14]} 57. Ra3 {[%clk 0:00:17]} 1-0


[Site "https://www.chess.com"]

[Event "Titled Tuesday Blitz April 18 Early 2023"]
[White "Mekhitarian, Krikor Sevag"]
[Black "Caruana, Fabiano"]
[WhiteFideId "2107660"]
[BlackFideId "2020009"]
[WhiteElo "2604"]
[BlackElo "2837"]
[Result "0-1"]
[Round "03"]
[TimeControl "180+2"]
[Date "2023.04.18"]
[WhiteClock "0:00:12"]
[BlackClock "0:00:52"]

1. Nf3 {[%clk 0:02:59]}  g6 {[%clk 0:02:59]} 2. c4 {[%clk 0:02:59]}  Bg7 {[%clk 0:02:59]} 3. e4 {[%clk 0:02:56]}  d6 {[%clk 0:02:59]} 4. d4 {[%clk 0:02:56]}  Nf6 {[%clk 0:03:00]} 5. Nc3 {[%clk 0:02:56]}  O-O {[%clk 0:03:00]} 6. h3 {[%clk 0:02:57]}  e5 {[%clk 0:02:59]} 7. d5 {[%clk 0:02:57]}  a5 {[%clk 0:02:58]} 8. Be3 {[%clk 0:02:56]}  Na6 {[%clk 0:02:58]} 9. g4 {[%clk 0:02:56]}  Nc5 {[%clk 0:02:56]} 10. Nd2 {[%clk 0:02:56]}  Nfd7 {[%clk 0:02:55]} 11. h4 {[%clk 0:02:40]}  Nb6 {[%clk 0:02:54]} 12. Nb3 {[%clk 0:02:12]}  Nba4 {[%clk 0:02:45]} 13. Nxc5 {[%clk 0:01:59]}  Nxc5 {[%clk 0:02:43]} 14. Be2 {[%clk 0:01:56]}  f5 {[%clk 0:02:36]} 15. exf5 {[%clk 0:01:55]}  gxf5 {[%clk 0:02:36]} 16. g5 {[%clk 0:01:28]}  e4 {[%clk 0:02:31]} 17. Qd2 {[%clk 0:01:19]}  a4 {[%clk 0:02:26]} 18. Rc1 {[%clk 0:01:15]}  Qe7 {[%clk 0:02:23]} 19. Kd1 {[%clk 0:01:04]}  f4 {[%clk 0:02:04]} 20. Bxf4 {[%clk 0:00:58]}  Nd3 {[%clk 0:01:59]} 21. Bxd3 {[%clk 0:00:49]}  exd3 {[%clk 0:02:00]} 22. Rg1 {[%clk 0:00:50]}  a3 {[%clk 0:01:54]} 23. Be3 {[%clk 0:00:39]}  axb2 {[%clk 0:01:51]} 24. Qxb2 {[%clk 0:00:40]}  Bd7 {[%clk 0:01:32]} 25. Qd2 {[%clk 0:00:28]}  Ra3 {[%clk 0:01:21]} 26. Qxd3 {[%clk 0:00:22]}  Qe5 {[%clk 0:01:20]} 27. Kd2 {[%clk 0:00:19]}  Bf5 {[%clk 0:01:19]} 28. f4 {[%clk 0:00:12]}  Qe7 {[%clk 0:00:54]} 29. Qf1 {[%clk 0:00:12]}  Bxc3+ {[%clk 0:00:52]} 0-1


[Site "https://www.chess.com"]

[Event "Titled Tuesday Blitz April 18 Early 2023"]
[White "So, Wesley"]
[Black "Rodshtein, Maxim"]
[WhiteFideId "5202213"]
[BlackFideId "2806851"]
[WhiteElo "2749"]
[BlackElo "2555"]
[Result "1-0"]
[Round "03"]
[TimeControl "180+2"]
[Date "2023.04.18"]
[WhiteClock "0:01:30"]
[BlackClock "0:00:08"]

1. Nf3 {[%clk 0:03:00]}  g6 {[%clk 0:02:59]} 2. e4 {[%clk 0:02:59]}  Bg7 {[%clk 0:02:59]} 3. d4 {[%clk 0:02:59]}  d6 {[%clk 0:02:59]} 4. Bc4 {[%clk 0:03:00]}  Nf6 {[%clk 0:02:59]} 5. Qe2 {[%clk 0:02:59]}  Nc6 {[%clk 0:02:59]} 6. e5 {[%clk 0:02:56]}  dxe5 {[%clk 0:02:54]} 7. dxe5 {[%clk 0:02:57]}  Ng4 {[%clk 0:02:53]} 8. e6 {[%clk 0:02:51]}  Bxe6 {[%clk 0:02:43]} 9. Bxe6 {[%clk 0:02:50]}  fxe6 {[%clk 0:02:43]} 10. O-O {[%clk 0:02:45]}  Nge5 {[%clk 0:02:31]} 11. Nxe5 {[%clk 0:02:44]}  Bxe5 {[%clk 0:02:27]} 12. Rd1 {[%clk 0:02:41]}  Bd6 {[%clk 0:02:20]} 13. Nc3 {[%clk 0:02:36]}  Qd7 {[%clk 0:02:12]} 14. Ne4 {[%clk 0:02:31]}  O-O-O {[%clk 0:02:03]} 15. Be3 {[%clk 0:02:24]}  e5 {[%clk 0:01:40]} 16. Nc5 {[%clk 0:02:24]}  Qe8 {[%clk 0:01:17]} 17. Qg4+ {[%clk 0:02:20]}  Kb8 {[%clk 0:01:16]} 18. Ne6 {[%clk 0:02:20]}  Rc8 {[%clk 0:01:15]} 19. c4 {[%clk 0:02:16]}  Qf7 {[%clk 0:00:54]} 20. c5 {[%clk 0:02:11]}  h6 {[%clk 0:00:51]} 21. Rac1 {[%clk 0:02:05]}  g5 {[%clk 0:00:43]} 22. b4 {[%clk 0:02:02]}  e4 {[%clk 0:00:27]} 23. cxd6 {[%clk 0:01:52]}  exd6 {[%clk 0:00:26]} 24. Nd4 {[%clk 0:01:45]}  Nxb4 {[%clk 0:00:21]} 25. Qxe4 {[%clk 0:01:45]}  Rhe8 {[%clk 0:00:17]} 26. Qb1 {[%clk 0:01:42]}  Nd5 {[%clk 0:00:09]} 27. Qb3 {[%clk 0:01:32]}  Ka8 {[%clk 0:00:08]} 28. Nb5 {[%clk 0:01:30]} 1-0


[Site "https://www.chess.com"]